bitfinex/quotes_ETHUSD_20250414
["timestamp","ask_amount","ask_price","bid_price","bid_amount"]
[1744666872569,6.19594,1614.0,1613.5,67.00266]
[1744666872570,6.26794421,1613.9,1613.5,67.00266]
[1744666872930,0.12158421,1613.9,1613.6,6.19712]
[1744666873135,0.12158421,1613.9,1613.8,6.19655]
[1744666873336,0.32331631,1614.2,1613.9,6.19588]
[1744666873669,9.7435,1614.6,1613.6,6.1449596]
[1744666873670,6.19236,1614.9,1614.5,6.19357]
[1744666873869,6.19364,1614.6,1614.4,12.458]
[1744666874073,0.55,1614.8,1614.1,6.19521]
[1744666874279,6.19431,1614.4,1614.1,6.19521]
[1744666874437,6.19431,1614.4,1613.9,18.654]
[1744666874438,6.19431,1614.4,1614.0,6.19578]
[1744666874638,6.19431,1614.4,1614.1,6.19526]
[1744666874852,6.19391,1614.5,1614.1,6.25715965]
[1744666875056,6.19391,1614.5,1614.1,6.19521]
[1744666875258,6.19285,1614.8,1614.4,6.19403]
[1744666875540,12.38429,1615.0,1614.5,12.458]
[1744666875765,6.13441517,1615.1,1614.8,6.19252]
[1744666875954,6.19182,1615.1,1614.7,6.25486247]
[1744666876165,6.19182,1615.1,1614.7,12.44784247]
[1744666876475,12.56634982,1615.0,1614.5,12.458]
[1744666876680,6.19425,1614.4,1614.3,48.324]
[1744666878063,0.55,1614.3,1613.5,1.5156]
[1744666878263,0.55,1614.3,1613.4,18.65301]
[1744666878264,6.19671,1613.8,1613.4,18.65301]
[1744666878485,6.19747,1613.6,1613.2,6.19858]
[1744666878901,6.19863,1613.3,1613.1,48.315]
[1744666879190,12.39736,1613.3,1613.1,48.315]
[1744666879358,6.19863,1613.3,1613.1,48.315]
[1744666879554,6.19949,1613.1,1612.7,6.2006]
[1744666879962,12.39909,1613.1,1612.7,6.2006]
[1744666880157,6.19982,1613.0,1612.6,18.656]
[1744666880597,6.19982,1613.0,1612.6,24.85694]
[1744666880894,6.19889,1613.2,1612.6,12.455]
[1744666881203,12.39806,1613.2,1612.8,6.20034]
[1744666881688,6.19977,1613.0,1612.6,18.656]
[1744666882104,12.39962,1613.0,1612.6,18.65603]
[1744666882272,12.39961,1613.0,1612.6,18.65603]
[1744666882476,6.20012,1612.9,1612.6,18.65603]
[1744666882877,12.3996,1613.0,1612.6,18.65596]
[1744666883609,0.5,1613.1,1612.8,12.40049]
[1744666883903,0.5,1613.1,1613.0,6.19962]
[1744666884087,10.19054082,1613.8,1613.1,6.19924]
[1744666884291,6.19671,1613.8,1613.4,6.19791]
[1744666884672,11.08171982,1614.1,1613.6,6.19716]
[1744666884673,6.19621,1613.9,1613.6,6.19716]
[1744666885105,6.13441517,1614.0,1613.3,6.19847]
[1744666885306,6.1963,1613.9,1613.6,6.19711]
[1744666885607,6.19629,1613.9,1613.6,6.19711]
[1744666885980,6.19629,1613.9,1613.5,6.19767]
[1744666886183,6.19629,1613.9,1613.6,6.19727]
[1744666887004,6.19629,1613.9,1613.5,6.19735]
[1744666887507,6.19629,1613.9,1613.6,6.19716]
[1744666888508,6.19629,1613.9,1613.5,12.39493]
[1744666889311,6.19629,1613.9,1613.6,6.19731]
[1744666890413,12.39265,1613.9,1613.6,6.19731]
[1744666890600,6.13441517,1614.0,1613.6,6.19719]
[1744666890601,12.33025517,1614.0,1613.6,6.19719]
[1744666890772,6.19646,1613.9,1613.3,6.19838]
[1744666891172,12.33024517,1614.0,1613.6,6.19716]
[1744666891683,12.33024517,1614.0,1613.7,6.19685]
[1744666892829,18.52624517,1614.0,1613.7,6.19685]
[1744666893037,12.33024517,1614.0,1613.6,6.1972]
[1744666893194,12.33024517,1614.0,1613.7,6.19681]
[1744666893637,12.33024517,1614.0,1613.7,12.39361]
[1744666894105,12.33024517,1614.0,1613.7,6.1968]
[1744666894306,18.52619517,1614.0,1613.7,6.1968]
[1744666894492,18.52626517,1614.0,1613.7,6.1968]
[1744666894699,12.33024517,1614.0,1613.7,6.1968]
[1744666895293,12.33024517,1614.0,1613.7,12.3936]
[1744666895492,12.33024517,1614.0,1613.7,6.19682]
[1744666896003,18.52639517,1614.0,1613.7,6.19682]
[1744666896430,6.19617,1613.9,1613.6,24.2095]
[1744666897339,18.52639517,1614.0,1613.7,6.19692]
[1744666897639,12.33024517,1614.0,1613.7,12.39373]
[1744666899136,12.33024517,1614.0,1613.7,6.19681]
[1744666899337,12.33024517,1614.0,1613.9,6.19617]
[1744666899338,6.13441517,1614.0,1613.9,6.19617]
[1744666899537,6.19473,1614.3,1614.0,6.19571]
[1744666899903,6.19473,1614.3,1614.0,12.39135]
[1744666900103,6.19473,1614.3,1613.6,6.19704]
[1744666900104,6.19463,1614.3,1613.6,6.19704]
[1744666900424,6.19617,1613.9,1613.3,6.19811]
[1744666900631,6.19744,1613.6,1613.3,6.19844]
[1744666901762,6.19744,1613.6,1613.3,6.19833]
[1744666901942,12.39504,1613.6,1613.3,6.19833]
[1744666902244,6.19702,1613.7,1613.4,6.19798]
[1744666903737,6.19702,1613.7,1613.3,12.39676]
[1744666904918,6.19702,1613.7,1613.4,6.19807]
[1744666905113,12.33062517,1613.9,1613.5,6.19763]
[1744666905313,12.33062517,1613.9,1613.7,6.19686]
[1744666905314,6.13441517,1613.9,1613.7,6.19686]
[1744666905928,6.13441517,1613.9,1613.7,6.19682]
[1744666906134,6.13441517,1613.9,1613.8,6.19655]
[1744666906530,6.13441517,1613.9,1613.8,17.61755]
[1744666907041,6.19511,1614.2,1613.9,6.1961]
[1744666907251,1.6634,1614.4,1613.8,11.421]
[1744666907444,9.50857499,1614.5,1614.1,6.19527]
[1744666907757,6.19425,1614.4,1614.1,6.19526]
[1744666908730,12.38872,1614.4,1614.1,6.19526]
[1744666909322,6.19425,1614.4,1614.1,6.19526]
[1744666909518,12.38882,1614.4,1614.1,6.19526]
[1744666909713,6.19425,1614.4,1614.1,6.19526]
[1744666909920,0.55,1614.3,1613.8,11.421]
[1744666910141,6.19578,1614.0,1613.8,11.421]
[1744666911558,12.39098,1614.1,1613.8,11.421]
[1744666911732,12.39096,1614.1,1613.8,17.61744]
[1744666911934,6.19541,1614.1,1613.8,17.61744]
[1744666912169,6.19541,1614.1,1613.8,17.61742]
[1744666912673,6.19541,1614.1,1613.8,23.81385]
[1744666913073,6.19541,1614.1,1613.8,17.61742]
[1744666913261,6.19541,1614.1,1613.8,23.81384]
[1744666913463,12.39096,1614.1,1613.8,17.61742]
[1744666913845,12.39096,1614.1,1613.8,11.421]
[1744666914061,12.39116,1614.1,1613.8,17.61748]
[1744666914258,6.19541,1614.1,1613.8,11.421]
[1744666914456,6.19549,1614.1,1613.8,11.421]
[1744666914737,6.19549,1614.1,1613.8,17.61744]
[1744666915374,6.19549,1614.1,1613.8,23.81386]
[1744666915558,6.19549,1614.1,1613.8,23.81385]
[1744666915945,6.19508,1614.2,1613.9,12.39221]
[1744666916440,0.33808507,1614.1,1613.9,12.39221]
[1744666916675,0.33808507,1614.1,1614.0,6.19578]
[1744666917075,0.33808507,1614.2,1614.1,6.1954]
[1744666918072,21.89659499,1614.5,1614.2,6.19494]
[1744666918278,15.70252499,1614.5,1614.2,6.19494]
[1744666918586,6.19395,1614.5,1614.2,6.19494]
[1744666918791,0.33799546,1614.4,1614.2,12.38983]
[1744666919089,0.33799546,1614.4,1614.1,6.1953]
[1744666920408,0.33799546,1614.4,1614.2,6.19497]
[1744666920888,0.33799546,1614.4,1614.2,12.38994]
[1744666921589,0.33799546,1614.4,1614.2,6.19497]
[1744666921788,6.19395,1614.5,1614.2,6.19497]
[1744666922097,6.19395,1614.5,1614.2,6.19491]
[1744666922312,12.38795,1614.5,1614.2,6.19491]
[1744666923416,6.19395,1614.5,1614.2,12.38982]
[1744666924680,0.5,1614.4,1614.2,12.38982]
[1744666924889,6.13441517,1614.3,1614.2,9.006092]
[1744666925102,6.13441517,1614.3,1614.2,7.82905289]
[1744666925407,6.13441517,1614.3,1614.2,7.76711]
[1744666925787,0.5,1614.4,1614.3,6.19463]
[1744666925989,0.5,1614.4,1614.3,6.25656379]
[1744666926401,0.5,1614.4,1614.3,6.19463]
[1744666927521,0.5,1614.4,1614.3,8.210295]
[1744666927933,6.13441517,1614.6,1614.5,6.19386]
[1744666928146,6.13441517,1614.8,1614.7,6.1931]
[1744666929286,6.13441517,1614.8,1614.7,6.25502336]
[1744666929487,6.13441517,1614.8,1614.7,8.05726034]
[1744666931520,6.13441517,1614.8,1614.7,9.78347991]
[1744666931725,6.13441517,1615.3,1615.1,6.19133]
[1744666931932,6.13441517,1615.2,1615.1,16.62333]
[1744666939568,6.13441517,1615.3,1615.2,6.19118]
[1744666940142,0.05,1615.4,1615.2,12.44426067]
[1744666940558,0.05,1615.4,1615.3,6.1908]
[1744666940916,0.05,1615.4,1615.3,7.7814]
[1744666941571,0.05,1615.4,1615.3,8.301267]
[1744666941767,1e-05,1615.4,1615.3,8.301267]
[1744666943167,1e-05,1615.4,1615.3,8.36315411]
[1744666943372,1e-05,1615.4,1615.3,11.04420825]
[1744666945233,1e-05,1615.4,1615.3,18.90790825]
[1744666945511,1e-05,1615.4,1615.3,18.84602114]
[1744666946398,1e-05,1615.4,1615.3,19.04602114]
[1744666947097,1e-05,1615.4,1615.3,18.84602114]
[1744666947521,6.13441517,1616.1,1616.0,6.18811]
[1744666947684,6.13441517,1616.1,1616.0,15.93911]
[1744666948014,6.13441517,1616.1,1616.0,21.95858874]
[1744666950176,1.5446,1617.1,1616.0,18.92874697]
[1744666950378,1.5446,1617.1,1617.0,6.18429]
[1744666950715,0.55,1617.3,1617.2,6.18352]
[1744666950926,0.55,1617.3,1617.2,6.24534764]
[1744666951813,0.55,1617.3,1617.2,6.18352]
[1744666952364,6.7334,1617.3,1617.0,9.75]
[1744666952532,6.18365,1617.2,1617.0,9.75]
[1744666952895,6.1839,1617.1,1617.0,9.75]
[1744666953699,0.12057571,1617.1,1617.0,9.75]
[1744666953898,6.30447571,1617.1,1617.0,9.75]
[1744666954096,6.1839,1617.1,1617.0,9.75]
[1744666954295,6.30447571,1617.1,1617.0,9.75]
[1744666954589,0.12057571,1617.1,1617.0,9.75]
[1744666954833,13.91197,1617.2,1617.0,9.75]
[1744666955032,0.12057571,1617.1,1617.0,9.75]
[1744666955495,13.91196,1617.2,1617.0,9.75]
[1744666955692,6.30447571,1617.1,1617.0,9.75]
[1744666956634,6.30447571,1617.1,1617.0,6.9899154]
[1744666961822,6.18586,1616.6,1616.3,6.18688]
[1744666962020,6.18586,1616.6,1616.4,9.408]
[1744666962236,6.30831081,1616.5,1616.4,9.408]
[1744666963436,0.55,1616.3,1615.5,6.19002]
[1744666963605,6.18941,1615.7,1615.4,63.82929]
[1744666963930,6.19003,1615.5,1615.4,57.639]
[1744666964315,0.12044037,1615.5,1615.4,57.639]
[1744666964898,6.31047037,1615.5,1615.4,57.639]
[1744666965201,6.19003,1615.5,1615.4,57.639]
[1744666966447,6.18932,1615.7,1615.4,57.639]
[1744666966593,7.75508,1615.8,1615.4,69.5932]
[1744666966940,1.5662,1615.8,1615.5,6.18976]
[1744666967732,1.5662,1615.8,1615.5,12.37963]
[1744666967922,21.5172,1615.9,1615.5,12.37963]
[1744666968126,21.51722,1615.9,1615.5,12.37963]
[1744666968433,15.32851,1615.9,1615.5,12.37963]
[1744666968801,6.14,1615.8,1615.5,12.37963]
[1744666969035,6.14,1615.8,1615.6,6.18962]
[1744666969401,6.14,1615.8,1615.5,12.37966]
[1744666970034,0.5,1615.7,1615.5,12.37966]
[1744666970340,0.5,1615.7,1615.6,6.18965]
[1744666973834,0.5,1615.7,1615.4,63.8293]
[1744666974158,0.5,1615.7,1615.4,63.82923]
[1744666974333,0.5,1615.7,1615.5,12.37968]
[1744666975010,0.5,1615.7,1615.5,6.1899]
[1744666975206,0.5,1615.7,1615.5,12.37976]
[1744666975613,0.5,1615.7,1615.6,6.18965]
[1744666976107,0.5,1615.7,1615.5,6.18986]
[1744666976641,6.120326,1615.8,1615.5,6.18986]
[1744666977752,6.120326,1615.8,1615.5,12.37978]
[1744666978164,6.120326,1615.8,1615.6,6.18964]
[1744666978462,6.120326,1615.8,1615.7,6.18926]
[1744666978961,6.120326,1615.8,1615.7,6.25114456]
[1744666979959,6.120326,1615.8,1615.7,6.24059256]
[1744666980155,6.120326,1615.8,1615.7,6.178708]
[1744666982776,6.120326,1616.0,1615.9,6.1885]
[1744666982976,6.120326,1616.0,1615.9,15.0235]
[1744666986546,6.120326,1616.0,1615.9,8.835]
[1744666986747,12.308436,1616.0,1615.9,8.835]
[1744666987778,6.120326,1616.0,1615.9,8.835]
[1744666987947,6.120326,1616.0,1615.9,16.525869]
[1744666988148,6.120326,1616.0,1615.9,8.835]
[1744666988362,6.120326,1616.0,1615.9,15.0235]
[1744666991106,6.120326,1616.2,1616.1,6.18773]
[1744666994356,6.120326,1616.4,1616.3,6.18697]
[1744666998398,6.120326,1616.6,1616.5,6.1862]
[1744666998699,6.120326,1616.6,1616.5,14.7312]
[1744666999456,6.120326,1616.6,1616.5,8.545]
[1744667000569,6.120326,1616.6,1616.5,14.7312]
[1744667000889,6.120326,1616.6,1616.5,8.545]
[1744667001097,12.306146,1616.6,1616.5,8.545]
[1744667002213,12.856146,1616.6,1616.5,7.9377071]
[1744667002391,17.20134617,1616.6,1616.5,7.9377071]
[1744667003426,17.76388984,1616.6,1616.5,7.9377071]
[1744667003726,18.10139271,1616.6,1616.5,7.9377071]
[1744667003924,14.77899254,1616.6,1616.5,7.9377071]
[1744667004222,14.21644887,1616.6,1616.5,7.9377071]
[1744667004429,13.878946,1616.6,1616.5,7.9377071]
[1744667005926,6.120326,1616.6,1616.5,7.9377071]
[1744667010842,6.120326,1616.7,1616.5,14.1239071]
[1744667011030,6.120326,1616.7,1616.6,6.18582]
[1744667015252,6.120326,1616.9,1616.7,6.18517]
[1744667015453,6.120326,1616.9,1616.7,12.3704]
[1744667016033,6.120326,1616.9,1616.7,6.18517]
[1744667016356,6.120326,1616.9,1616.7,12.37049]
[1744667018765,6.120326,1616.9,1616.8,6.18505]
[1744667020158,10.70284,1617.2,1616.8,6.18505]
[1744667020159,6.120326,1617.0,1616.9,6.18467]
[1744667024366,6.120326,1617.1,1617.0,6.18429]
[1744667024665,6.120326,1617.1,1617.0,13.91529]
[1744667027484,6.120326,1617.2,1617.1,6.1839]
[1744667028558,6.120326,1617.2,1617.1,8.193819]
[1744667029751,6.120326,1617.2,1617.1,6.1839]
[1744667031041,6.170326,1617.4,1617.3,6.18314]
[1744667033979,0.29355418,1618.0,1617.3,6.18314]
[1744667033980,4.01983974,1618.2,1618.0,6.18029]
[1744667034164,4.01983974,1618.2,1618.1,13.91008]
[1744667034983,4.01983974,1618.2,1618.1,7.73]
[1744667035551,5.65553974,1618.3,1618.1,7.73]
[1744667036082,11.83485974,1618.3,1618.1,7.73]
[1744667036243,5.65553974,1618.3,1618.1,7.73]
[1744667037450,4.01983974,1618.3,1618.1,13.91004]
[1744667038084,4.01983974,1618.3,1618.1,20.09]
[1744667038283,4.01983974,1618.3,1618.2,6.1797]
[1744667038577,4.01983974,1618.3,1618.1,13.90996]
[1744667038776,4.01983974,1618.3,1618.1,7.73]
[1744667039490,10.19922974,1618.3,1618.1,7.73]
[1744667039666,12.35888,1618.3,1618.1,7.73]
[1744667039998,7.7064,1618.2,1618.1,7.73]
[1744667040289,7.7064,1618.2,1617.5,13.90926]
[1744667040290,6.18119,1617.9,1617.5,13.90926]
[1744667040458,6.18124,1617.8,1617.5,13.90926]
[1744667040990,12.36232,1617.9,1617.5,13.90925]
[1744667041153,6.18123,1617.8,1617.5,13.90922]
[1744667041505,12.32178,1617.7,1617.5,7.727]
[1744667042081,6.18199,1617.6,1617.5,7.727]
[1744667042352,6.18261,1617.5,1617.1,13.91078]
[1744667042576,6.73332,1617.3,1617.1,7.727]
[1744667042789,13.98833,1617.2,1616.8,6.18488]
[1744667042965,6.18456,1617.0,1616.7,7.727]
[1744667043381,12.36912,1617.0,1616.7,7.727]
[1744667043557,6.18456,1617.0,1616.7,7.727]
[1744667043888,0.55,1616.9,1616.2,7.727]
[1744667044193,6.186,1616.6,1616.2,13.91432]
[1744667044691,6.186,1616.6,1616.2,20.10154]
[1744667044998,6.186,1616.6,1616.3,6.18681]
[1744667045499,7.8501,1616.7,1616.2,16.088514]
[1744667045660,6.73606,1616.6,1616.2,22.275664]
[1744667046398,6.73606,1616.6,1616.2,13.91415]
[1744667046571,7.85031,1616.7,1616.4,6.18655]
[1744667046775,6.18571,1616.7,1616.4,6.18655]
[1744667049000,6.18571,1616.7,1616.4,12.37302]
[1744667049161,6.73513,1616.8,1616.4,6.18647]
[1744667049366,7.874773,1616.8,1616.4,6.1864]
[1744667049664,6.18556,1616.7,1616.4,6.1864]
[1744667051103,12.37118,1616.7,1616.4,6.1864]
[1744667051304,6.73509,1616.8,1616.4,12.37281]
[1744667051504,12.92028,1616.8,1616.4,12.37281]
[1744667052465,12.92049,1616.8,1616.4,12.37286]
[1744667052669,10.84606,1616.9,1616.5,6.1861]
[1744667053500,17.03099,1616.9,1616.5,6.1861]
[1744667053671,10.84606,1616.9,1616.5,12.37214]
[1744667053873,23.17089,1616.9,1616.5,12.37214]
[1744667054073,23.17089,1616.9,1616.5,6.18604]
[1744667054869,6.14,1616.9,1616.6,6.18573]
[1744667055096,18.50892,1617.0,1616.6,12.37146]
[1744667055299,12.32436,1617.0,1616.6,12.37146]
[1744667055501,18.50888,1617.0,1616.6,12.37146]
[1744667055707,6.18478,1616.9,1616.6,6.18568]
[1744667055915,12.36962,1616.9,1616.6,6.18568]
[1744667056097,12.3697,1616.9,1616.6,6.18568]
[1744667056303,6.18506,1616.8,1616.5,13.776064]
[1744667056489,6.18478,1616.9,1616.6,6.1858]
[1744667056688,12.36966,1616.9,1616.6,6.1858]
[1744667057550,6.18478,1616.9,1616.6,6.1858]
[1744667057713,6.18525,1616.8,1616.5,7.589924]
[1744667057883,6.18525,1616.8,1616.5,6.18611]
[1744667058083,12.37049,1616.8,1616.5,6.18611]
[1744667058289,12.36963,1616.9,1616.5,6.18608]
[1744667058612,6.18477,1616.9,1616.5,6.18602]
[1744667058801,6.18508,1616.8,1616.5,12.37212]
[1744667059001,6.18477,1616.9,1616.6,6.18578]
[1744667059515,12.36958,1616.9,1616.6,6.18578]
[1744667059720,18.50958,1616.9,1616.6,6.18578]
[1744667061335,6.18524,1616.8,1616.5,1.403772]
[1744667061547,6.18524,1616.8,1616.4,7.85208]
[1744667061722,6.18556,1616.7,1616.4,1.6656]
[1744667061901,6.18556,1616.7,1616.4,7.85215]
[1744667062101,6.14,1616.8,1616.6,6.18553]
[1744667062400,18.50805,1617.1,1616.8,6.185]
[1744667063543,6.18429,1617.0,1616.7,13.65243]
[1744667064077,6.18429,1617.0,1616.7,13.65232]
[1744667064263,6.18429,1617.0,1616.7,19.83764]
[1744667064439,6.18429,1617.0,1616.7,21.821404]
[1744667064635,12.36872,1617.0,1616.7,15.636084]
[1744667064820,6.18429,1617.0,1616.7,15.636084]
[1744667065565,6.18429,1617.0,1616.7,21.821404]
[1744667066356,6.18429,1617.0,1616.7,15.636084]
[1744667067324,12.3688,1617.0,1616.7,15.636084]
[1744667069458,6.14,1617.1,1616.7,7.467]
[1744667069751,6.18505,1616.8,1616.7,7.467]
[1744667070062,12.32505,1616.8,1616.7,7.467]
[1744667071813,6.18613,1616.6,1616.3,7.188]
[1744667072016,6.18623,1616.5,1616.3,7.188]
[1744667072451,6.18658,1616.4,1616.3,7.188]
[1744667073366,18.51262,1616.5,1616.3,7.188]
[1744667074865,0.55,1616.3,1615.5,8.7901]
[1744667075160,6.18901,1615.8,1615.5,8.7901]
[1744667075381,6.18927,1615.7,1615.5,8.7901]
[1744667076016,6.18901,1615.8,1615.5,8.7901]
[1744667076017,12.37814,1615.8,1615.5,8.7901]
[1744667076215,6.18901,1615.8,1615.5,8.7901]
[1744667076432,6.1894,1615.7,1615.5,8.7901]
[1744667077045,6.14,1616.2,1616.0,6.18808]
[1744667077242,6.14,1616.3,1616.0,13.37798]
[1744667077463,6.14,1616.3,1616.1,6.18759]
[1744667077629,6.14,1616.3,1616.1,6.18758]
[1744667077829,6.14,1616.6,1616.3,6.1869]
[1744667078031,6.14,1616.6,1616.3,6.18683]
[1744667078341,6.14,1616.6,1616.3,12.37368]
[1744667078542,6.14,1616.6,1616.4,6.18655]
[1744667079479,6.14,1616.6,1616.4,12.37299]
[1744667079639,12.79095722,1616.8,1616.4,12.37299]
[1744667080486,12.32517,1616.8,1616.4,12.37299]
[1744667080642,6.14,1616.8,1616.6,6.1857]
[1744667080841,6.14,1616.8,1616.6,12.37137]
[1744667081865,6.14,1616.8,1616.6,6.18567]
[1744667082377,6.14,1616.8,1616.6,12.37137]
[1744667084789,11.24193023,1617.0,1616.6,12.37137]
[1744667084790,11.19747023,1617.0,1616.7,6.18543]
[1744667084994,6.14,1617.0,1616.5,13.37618]
[1744667085292,6.14,1617.0,1616.8,12.36976]
[1744667089056,6.14,1617.1,1616.8,12.36976]
[1744667090699,6.14,1617.1,1616.9,6.18434]
[1744667090901,6.14,1617.3,1617.0,6.18429]
[1744667091202,6.14,1617.3,1617.2,6.18352]
[1744667091406,12.32238,1617.5,1617.2,6.18342]
[1744667092406,12.32238,1617.5,1617.2,12.36684]
[1744667092778,12.32238,1617.5,1617.2,6.18342]
[1744667093169,6.14,1617.5,1617.2,6.18342]
[1744667093373,6.14,1617.5,1617.3,6.18312]
[1744667094673,6.14,1617.5,1617.3,12.36613]
[1744667094873,6.14,1617.5,1617.3,6.18301]
[1744667095149,6.14,1617.5,1617.4,6.18276]
[1744667095992,6.14,1617.6,1617.4,6.18276]
[1744667096175,6.14,1617.6,1617.5,6.18238]
[1744667097477,6.14,1617.6,1617.5,7.71928]
[1744667097820,0.46588801,1618.1,1618.0,6.18046]
[1744667098123,4.01983974,1618.3,1618.2,6.1797]
[1744667098618,4.01983974,1618.3,1618.1,12.35997]
[1744667098827,4.01983974,1618.3,1618.1,6.17992]
[1744667099040,4.01983974,1618.3,1618.1,12.35989]
[1744667099828,4.01983974,1618.3,1618.1,6.17992]
[1744667100030,12.3596,1618.2,1618.0,6.919]
[1744667100236,10.78374251,1618.1,1618.0,6.919]
[1744667100399,10.78374251,1618.1,1617.6,7.7188]
[1744667100400,6.18114,1617.9,1617.6,6.918]
[1744667100726,12.82813401,1618.0,1617.6,13.09988]
[1744667100931,6.18055,1618.0,1617.7,6.18158]
[1744667101231,6.18086,1617.9,1617.6,13.0999]
[1744667101388,6.18086,1617.9,1617.6,19.28179]
[1744667101593,6.18081,1618.0,1617.7,12.36316]
[1744667101931,6.18081,1618.0,1617.7,6.18158]
[1744667102288,6.18086,1617.9,1617.6,13.09996]
[1744667102692,6.18086,1617.9,1617.6,13.09986]
[1744667102893,6.18126,1617.8,1617.6,6.918]
[1744667103133,6.18205,1617.6,1617.3,7.71988]
[1744667103313,12.36426,1617.6,1617.4,6.917]
[1744667103842,6.18205,1617.6,1617.4,6.917]
[1744667104397,18.50423,1617.6,1617.4,6.917]
[1744667105401,6.18238,1617.5,1617.4,6.917]
[1744667112647,6.18333,1617.3,1616.9,6.917]
[1744667112938,12.32287,1617.4,1616.9,6.917]
[1744667113138,12.32287,1617.4,1616.4,57.53467727]
[1744667113139,6.7339,1617.1,1616.4,48.204]
[1744667113314,6.7339,1617.1,1616.6,6.917]
[1744667113315,12.37038,1616.8,1616.6,6.917]
[1744667113513,6.18516,1616.8,1616.6,6.917]
[1744667113955,12.37042,1616.8,1616.6,6.917]
[1744667114277,6.18543,1616.7,1616.6,6.917]
[1744667116162,6.73543,1616.7,1616.6,6.917]
[1744667116630,6.1862,1616.5,1616.4,48.204]
[1744667116834,18.51258,1616.5,1616.2,6.658]
[1744667117064,18.51263,1616.5,1616.2,12.84535]
[1744667117266,6.18662,1616.4,1616.2,6.658]
[1744667119947,6.14,1616.5,1616.2,14.748307]
[1744667120161,12.32624,1616.5,1616.2,12.84499]
[1744667120380,18.51263,1616.5,1616.2,6.658]
[1744667120774,6.14,1616.7,1616.6,7.82322]
[1744667121077,6.18479,1616.9,1616.6,14.48209]
[1744667121277,12.36905,1617.0,1616.6,14.48209]
[1744667121454,12.36905,1617.0,1616.6,20.6678]
[1744667121455,6.18473,1616.9,1616.6,20.6678]
[1744667121782,12.3691,1617.0,1616.6,20.66777]
[1744667122640,6.18469,1616.9,1616.6,14.48208]
[1744667122835,6.18469,1616.9,1616.6,20.66777]
[1744667123081,6.18467,1616.9,1616.6,20.66777]
[1744667123382,12.36949,1616.9,1616.6,14.48208]
[1744667123881,12.36951,1616.9,1616.6,14.48208]
[1744667124253,18.50951,1616.9,1616.6,14.48208]
[1744667124682,12.32467,1616.9,1616.6,14.48208]
[1744667124885,18.50965,1616.9,1616.6,6.659]
[1744667125550,6.18509,1616.8,1616.6,6.659]
[1744667125870,8.036066,1616.8,1616.6,6.659]
[1744667126070,6.69,1616.7,1616.2,12.84627]
[1744667126240,6.14,1616.6,1616.2,12.84627]
[1744667126454,6.18643,1616.5,1616.2,6.659]
[1744667126657,6.18672,1616.4,1616.2,6.659]
[1744667127090,6.73697,1616.3,1616.2,6.659]
[1744667127657,6.18779,1616.1,1615.8,6.18872]
[1744667127893,6.18779,1616.1,1615.8,6.18888]
[1744667128064,12.37575,1616.1,1615.7,68.80724]
[1744667128269,6.73827,1616.0,1615.7,62.61807]
[1744667130504,6.73827,1616.0,1615.7,61.05917]
[1744667134169,12.92656,1616.0,1615.7,61.05917]
[1744667134369,12.92656,1616.0,1615.7,54.87]
[1744667134562,14.219216,1616.0,1615.7,54.87]
[1744667135800,6.73827,1616.0,1615.7,61.05909]
[1744667136906,12.37579,1616.1,1615.7,67.24823]
[1744667137105,0.55,1615.9,1615.4,6.19015]
[1744667137315,6.18945,1615.7,1615.4,6.19015]
[1744667138204,18.51799,1615.8,1615.4,12.38043]
[1744667138511,12.32888,1615.8,1615.4,12.38043]
[1744667138716,18.518,1615.8,1615.4,12.38043]
[1744667139001,6.18927,1615.7,1615.4,6.1904]
[1744667139312,12.3289,1615.8,1615.4,12.38065]
[1744667139495,6.14,1615.8,1615.5,6.18972]
[1744667139876,6.595787,1615.8,1615.5,12.3796]
[1744667140086,3.30587277,1616.1,1615.9,6.1885]
[1744667140282,3.30587277,1616.1,1616.0,6.18811]
[1744667141503,11.02296277,1616.4,1616.1,6.18769]
[1744667141702,11.02296277,1616.4,1616.1,12.37532]
[1744667142399,9.49246277,1616.4,1616.1,12.37532]
[1744667145032,15.67929277,1616.4,1616.1,6.18763]
[1744667145825,6.18699,1616.3,1616.0,7.75079]
[1744667146129,6.18738,1616.2,1616.0,1.5628]
[1744667146831,6.18699,1616.3,1616.0,7.75087]
[1744667147755,9.49286277,1616.3,1616.0,7.75087]
[1744667149237,15.68007277,1616.3,1616.0,7.75087]
[1744667154261,6.18736,1616.2,1616.0,1.5628]
[1744667154429,15.68020277,1616.3,1616.0,7.75089]
[1744667154637,15.68020277,1616.3,1616.0,6.18809]
[1744667156026,6.18735,1616.2,1615.9,6.18816]
[1744667156226,6.18735,1616.2,1615.9,12.37656]
[1744667156426,6.18735,1616.2,1615.9,6.18816]
[1744667156626,12.37488,1616.2,1615.9,6.18816]
[1744667157275,3.30587277,1616.3,1616.1,6.18746]
[1744667157452,3.30587277,1616.3,1616.2,6.66]
[1744667158250,3.30587277,1616.3,1616.2,12.84735]
[1744667161076,9.49284277,1616.3,1616.2,6.66]
[1744667161253,6.18784,1616.1,1615.8,12.84787]
[1744667161449,6.18784,1616.1,1615.7,7.71537]
[1744667161663,1.6046,1615.9,1615.3,14.43512]
[1744667161984,0.55,1615.4,1615.1,0.05]
[1744667162151,6.74118,1615.2,1615.1,0.05]
[1744667162353,6.19118,1615.2,1615.1,0.05]